fUST/lending_fUST_20250801
["ID","MTS","AMOUNT","RATE_DAILY","PERIOD"]
[376449668,1753981860708,-151.0,0.00019726,2]
[376449669,1753981860718,-238.734816,0.00019726,2]
[376449670,1753981860727,-238.734816,0.00019726,2]
[376449671,1753981860739,-238.734812,0.00019726,2]
[376449672,1753981860749,-356.793482,0.00019726,2]
[376449673,1753981860759,-356.793482,0.00019726,2]
[376449674,1753981860769,-356.793482,0.00019726,2]
[376449675,1753981860779,-356.793482,0.00019726,2]
[376449676,1753981860789,-356.793482,0.00019726,2]
[376449677,1753981860798,-356.79349,0.00019726,2]
[376449678,1753981860807,-151.0,0.00019726,2]
[376449679,1753981860817,-151.0,0.00019726,2]
[376449680,1753981860827,-151.0,0.00019726,2]
[376449681,1753981860836,-294.208885,0.00019726,2]
[376449682,1753981860845,-294.208885,0.00019726,2]
[376449683,1753981860855,-294.208885,0.00019726,2]
[376449684,1753981860864,-294.208885,0.00019726,2]
[376449685,1753981860874,-294.208885,0.00019726,2]
[376449686,1753981860884,-294.208889,0.00019726,2]
[376449687,1753981860893,-891.86329,0.00019726,2]
[376449688,1753981860903,-891.86329,0.00019726,2]
[376449689,1753981860913,-891.86329,0.00019726,2]
[376449690,1753981860923,-151.0,0.00019726,2]
[376449691,1753981860933,-151.0,0.00019726,2]
[376449692,1753981860944,-269.504339,0.00019726,2]
[376449693,1753981860953,-151.0,0.00019726,2]
[376449694,1753981860964,-151.0,0.00019726,2]
[376449695,1753981860973,-151.0,0.00019726,2]
[376449696,1753981860982,-460.0,0.00019726,2]
[376449697,1753981860991,-274.86342,0.00019726,2]
[376449698,1753981861000,-274.86342,0.00019726,2]
[376449699,1753981861010,-274.86342,0.00019726,2]
[376449700,1753981861019,-274.86342,0.00019726,2]
[376449701,1753981861028,-151.0,0.00019726,2]
[376449702,1753981861037,-460.0,0.00019726,2]
[376449703,1753981861046,-505.38852183,0.00019726,2]
[376449704,1753981861055,-460.0,0.00019726,2]
[376449705,1753981861064,-592.99801124,0.00019726,2]
[376449706,1753981861073,-460.0,0.00019726,2]
[376449707,1753981861082,-465.25254522,0.00019726,2]
[376449708,1753981861092,-460.0,0.00019726,2]
[376449709,1753981861101,-460.0,0.00019726,2]
[376449710,1753981861110,-460.0,0.00019726,2]
[376449711,1753981861119,-630.574745,0.00019726,2]
[376449712,1753981861128,-630.574745,0.00019726,2]
[376449713,1753981861137,-460.0,0.00019726,2]
[376449714,1753981861147,-630.574745,0.00019726,2]
[376449715,1753981861155,-630.574741,0.00019726,2]
[376449716,1753981861164,-460.0,0.00019726,2]
[376449717,1753981861174,-174.4588525,0.00019726,2]
[376449718,1753981861183,-412.59963632,0.00019726,2]
[376449719,1753981861192,-460.0,0.00019726,2]
[376449720,1753981861201,-460.0,0.00019726,2]
[376449721,1753981861211,-460.0,0.00019726,2]
[376449722,1753981861220,-460.0,0.00019726,2]
[376449723,1753981861229,-460.0,0.00019726,2]
[376449724,1753981861239,-460.0,0.00019726,2]
[376449725,1753981861248,-460.0,0.00019726,2]
[376449726,1753981861257,-460.0,0.00019726,2]
[376449727,1753981861266,-259.434834,0.00019726,2]
[376449728,1753981861276,-259.434834,0.00019726,2]
[376449729,1753981861286,-259.434834,0.00019726,2]
[376449730,1753981861295,-259.434825,0.00019726,2]
[376449731,1753981861304,-460.0,0.00019726,2]
[376449732,1753981861314,-379.917327,0.00019726,2]
[376449733,1753981861324,-460.0,0.00019726,2]
[376449734,1753981861336,-593.4418104,0.00019726,2]
[376449735,1753981861346,-460.0,0.00019726,2]
[376449736,1753981861355,-460.0,0.00019726,2]
[376449737,1753981861366,-460.0,0.00019726,2]
[376449738,1753981861375,-154.297647,0.00019726,2]
[376449739,1753981861384,-533.87,0.00019726,2]
[376449740,1753981861393,-460.0,0.00019726,2]
[376449741,1753981861404,-460.0,0.00019726,2]
[376449742,1753981861413,-503.0526387,0.00019726,2]
[376449743,1753981861424,-460.0,0.00019726,2]
[376449744,1753981861433,-562.33573546,0.00019726,2]
[376449745,1753981861443,-460.0,0.00019726,2]
[376449746,1753981861452,-460.0,0.00019726,2]
[376449747,1753981861461,-460.0,0.00019726,2]
[376449748,1753981861470,-460.0,0.00019726,2]
[376449749,1753981861479,-461.03742344,0.00019726,2]
[376449750,1753981861489,-277.820069,0.00019726,2]
[376449751,1753981861498,-277.820069,0.00019726,2]
[376449752,1753981861508,-277.820069,0.00019726,2]
[376449753,1753981861517,-277.820069,0.00019726,2]
[376449754,1753981861527,-277.820069,0.00019726,2]
[376449755,1753981861537,-277.820068,0.00019726,2]
[376449756,1753981861546,-460.0,0.00019726,2]
[376449757,1753981861555,-460.0,0.00019726,2]
[376449758,1753981861564,-460.0,0.00019726,2]
[376449759,1753981861573,-460.0,0.00019726,2]
[376449760,1753981861583,-334.85726367,0.00019726,2]
[376449761,1753981861592,-288.07089867,0.00019726,2]
[376449762,1753981861602,-460.0,0.00019726,2]
[376449763,1753981861611,-460.0,0.00019726,2]
[376449764,1753981861619,-460.0,0.00019726,2]
[376449765,1753981861629,-460.0,0.00019726,2]
[376449766,1753981861639,-460.0,0.00019726,2]
[376449767,1753981861648,-460.0,0.00019726,2]
[376449768,1753981861658,-460.0,0.00019726,2]
[376449769,1753981861667,-151.0,0.00019726,2]
[376449770,1753981861676,-153.46826,0.00019726,2]
[376449771,1753981861686,-460.0,0.00019726,2]
[376449772,1753981861695,-460.0,0.00019726,2]
[376449773,1753981861705,-1162.89,0.00019726,2]
[376449774,1753981861714,-460.0,0.00019726,2]
[376449775,1753981861724,-923.56,0.00019726,2]
[376449776,1753981861733,-460.0,0.00019726,2]
[376449777,1753981861742,-460.0,0.00019726,2]
[376449778,1753981861752,-460.0,0.00019726,2]
[376449779,1753981861762,-460.0,0.00019726,2]
[376449780,1753981861771,-151.0,0.00019726,2]
[376449781,1753981861780,-151.0,0.00019726,2]
[376449782,1753981861790,-151.0,0.00019726,2]
[376449783,1753981861799,-460.0,0.00019726,2]
[376449784,1753981861809,-460.0,0.00019726,2]
[376449785,1753981861818,-546.23,0.00019726,2]
[376449786,1753981861827,-460.0,0.00019726,2]
[376449787,1753981861837,-596.33,0.00019726,2]
[376449788,1753981861847,-460.0,0.00019726,2]
[376449789,1753981861857,-460.0,0.00019726,2]
[376449790,1753981861868,-460.0,0.00019726,2]
[376449791,1753981861877,-460.0,0.00019726,2]
[376449792,1753981861887,-460.0,0.00019726,2]
[376449793,1753981861896,-258.500594,0.00019726,2]
[376449794,1753981861905,-258.500594,0.00019726,2]
[376449795,1753981861915,-258.500594,0.00019726,2]
[376449796,1753981861925,-460.0,0.00019726,2]
[376449797,1753981861934,-258.500594,0.00019726,2]
[376449798,1753981861943,-258.500594,0.00019726,2]
[376449799,1753981861952,-258.500594,0.00019726,2]
[376449800,1753981861962,-556.26,0.00019726,2]
[376449801,1753981861971,-460.0,0.00019726,2]
[376449802,1753981861979,-255.17114216,0.00019726,2]
[376449803,1753981861988,-460.0,0.00019726,2]
[376449804,1753981862000,-460.0,0.00019726,2]
[376449805,1753981862010,-460.0,0.00019726,2]
[376449806,1753981862019,-801.83,0.00019726,2]
[376449807,1753981862030,-460.0,0.00019726,2]
[376449808,1753981862042,-460.0,0.00019726,2]
[376449809,1753981862052,-460.0,0.00019726,2]
[376449810,1753981862061,-700.32,0.00019726,2]
[376449811,1753981862071,-460.0,0.00019726,2]
[376449812,1753981862081,-460.0,0.00019726,2]
[376449813,1753981862091,-1160.89,0.00019726,2]
[376449814,1753981862100,-179.048756,0.00019726,2]
[376449815,1753981862110,-179.048756,0.00019726,2]
[376449816,1753981862119,-179.048756,0.00019726,2]
[376449817,1753981862129,-460.0,0.00019726,2]
[376449818,1753981862139,-179.048756,0.00019726,2]
[376449819,1753981862148,-179.048756,0.00019726,2]
[376449820,1753981862157,-179.048756,0.00019726,2]
[376449821,1753981862167,-362.041649,0.00019726,2]
[376449822,1753981862176,-362.041649,0.00019726,2]
[376449823,1753981862186,-460.0,0.00019726,2]
[376449824,1753981862196,-362.041649,0.00019726,2]
[376449825,1753981862205,-460.0,0.00019726,2]
[376449826,1753981862215,-460.0,0.00019726,2]
[376449827,1753981862224,-460.0,0.00019726,2]
[376449828,1753981862234,-460.0,0.00019726,2]
[376449829,1753981862243,-362.041649,0.00019726,2]
[376449830,1753981862253,-727.61,0.00019726,2]
[376449831,1753981862262,-362.041649,0.00019726,2]
[376449832,1753981862271,-362.041649,0.00019726,2]
[376449833,1753981862281,-460.0,0.00019726,2]
[376449834,1753981862290,-465.09773716,0.00019726,2]
[376449835,1753981862299,-460.0,0.00019726,2]
[376449836,1753981862309,-382.51993777,0.00019726,2]
[376449837,1753981862319,-460.0,0.00019726,2]
[376449838,1753981862332,-460.0,0.00019726,2]
[376449839,1753981862342,-460.0,0.00019726,2]
[376449840,1753981862352,-178.94901124,0.00019726,2]
[376449841,1753981862363,-583.23,0.00019726,2]
[376449842,1753981862372,-452.05898746,0.00019726,2]
[376449843,1753981862382,-460.0,0.00019726,2]
[376449844,1753981862391,-460.0,0.00019726,2]
[376449845,1753981862403,-460.0,0.00019726,2]
[376449846,1753981862414,-460.0,0.00019726,2]
[376449847,1753981862423,-481.61,0.00019726,2]
[376449848,1753981862432,-460.0,0.00019726,2]
[376449849,1753981862442,-151.0,0.00019726,2]
[376449850,1753981862451,-151.0,0.00019726,2]
[376449851,1753981862460,-340.06505512,0.00019726,2]
[376449852,1753981862470,-460.0,0.00019726,2]
[376449853,1753981862479,-531.1,0.00019726,2]
[376449854,1753981862488,-460.0,0.00019726,2]
[376449855,1753981862498,-1803.185511,0.00019726,2]
[376449856,1753981862507,-1803.185511,0.00019726,2]
[376449857,1753981862516,-460.0,0.00019726,2]
[376449858,1753981862527,-1803.185511,0.00019726,2]
[376449859,1753981862538,-1803.18551717,0.00019726,2]
[376449860,1753981862547,-460.0,0.00019726,2]
[376449861,1753981862557,-460.0,0.00019726,2]
[376449862,1753981862566,-460.0,0.00019726,2]
[376449863,1753981862575,-454.86494637,0.00019726,2]
[376449864,1753981862584,-460.0,0.00019726,2]
[376449865,1753981862594,-460.0,0.00019726,2]
[376449866,1753981862604,-460.0,0.00019726,2]
[376449867,1753981862614,-460.0,0.00019726,2]
[376449868,1753981862625,-460.0,0.00019726,2]
[376449869,1753981862634,-498.79,0.00019726,2]
[376449870,1753981862644,-460.0,0.00019726,2]
[376449871,1753981862653,-768.07,0.00019726,2]
[376449872,1753981862662,-460.0,0.00019726,2]
[376449873,1753981862672,-460.0,0.00019726,2]
[376449874,1753981862681,-614.62,0.00019726,2]
[376449875,1753981862691,-460.0,0.00019726,2]
[376449876,1753981862709,-460.0,0.00019726,2]
[376449877,1753981862719,-460.0,0.00019726,2]
[376449878,1753981862729,-558.46,0.00019726,2]
[376449879,1753981862739,-817.944768,0.00019726,2]
[376449880,1753981862748,-817.944768,0.00019726,2]
[376449881,1753981862757,-737.32,0.00019726,2]
[376449882,1753981862767,-817.944768,0.00019726,2]
[376449883,1753981862776,-460.0,0.00019726,2]
[376449884,1753981862787,-460.0,0.00019726,2]
[376449885,1753981862796,-460.0,0.00019726,2]
[376449886,1753981862805,-460.0,0.00019726,2]
[376449887,1753981862814,-460.0,0.00019726,2]
[376449888,1753981862823,-817.944768,0.00019726,2]
[376449889,1753981862833,-817.944768,0.00019726,2]
[376449890,1753981862842,-817.944768,0.00019726,2]
[376449891,1753981862851,-585.0,0.00019726,2]
[376449892,1753981862861,-460.0,0.00019726,2]
[376449893,1753981862870,-733.2,0.00019726,2]
[376449894,1753981862879,-460.0,0.00019726,2]
[376449895,1753981862889,-460.0,0.00019726,2]
[376449896,1753981862898,-2244.53,0.00019726,2]
[376449897,1753981862908,-464.03122356,0.00019726,2]
[376449898,1753981862917,-460.0,0.00019726,2]
[376449899,1753981862926,-460.0,0.00019726,2]
[376449900,1753981862935,-460.0,0.00019726,2]
[376449901,1753981862944,-465.48932078,0.00019726,2]
[376449902,1753981862953,-460.0,0.00019726,2]
[376449903,1753981862962,-460.0,0.00019726,2]
[376449904,1753981862972,-460.0,0.00019726,2]
[376449905,1753981862981,-460.0,0.00019726,2]
[376449906,1753981862990,-460.0,0.00019726,2]
[376449907,1753981862999,-460.0,0.00019726,2]
[376449908,1753981863009,-460.0,0.00019726,2]
[376449909,1753981863018,-460.0,0.00019726,2]
[376449910,1753981863028,-401.15469468,0.00019726,2]
[376449911,1753981863038,-460.0,0.00019726,2]
[376449912,1753981863048,-460.0,0.00019726,2]
[376449913,1753981863059,-460.0,0.00019726,2]
[376449914,1753981863068,-460.0,0.00019726,2]
[376449915,1753981863078,-529.89,0.00019726,2]
[376449916,1753981863089,-460.0,0.00019726,2]
[376449917,1753981863099,-460.0,0.00019726,2]
[376449918,1753981863108,-460.0,0.00019726,2]
[376449919,1753981863118,-460.0,0.00019726,2]
[376449920,1753981863127,-789.19,0.00019726,2]
[376449921,1753981863137,-460.0,0.00019726,2]
[376449922,1753981863146,-749.05,0.00019726,2]
[376449923,1753981863156,-460.0,0.00019726,2]
[376449924,1753981863165,-462.3832443,0.00019726,2]
[376449925,1753981863175,-465.55340685,0.00019726,2]
[376449926,1753981863185,-460.0,0.00019726,2]
[376449927,1753981863195,-460.0,0.00019726,2]
[376449928,1753981863206,-460.0,0.00019726,2]
[376449929,1753981863216,-460.0,0.00019726,2]
[376449930,1753981863226,-460.0,0.00019726,2]
[376449931,1753981863236,-460.0,0.00019726,2]
[376449932,1753981863246,-460.0,0.00019726,2]
[376449933,1753981863255,-544.90644396,0.00019726,2]
[376449934,1753981863265,-460.0,0.00019726,2]
[376449935,1753981863274,-460.0,0.00019726,2]
[376449936,1753981863285,-593.63,0.00019726,2]
[376449937,1753981863295,-460.0,0.00019726,2]
[376449938,1753981863304,-460.0,0.00019726,2]
[376449939,1753981863313,-460.0,0.00019726,2]
[376449940,1753981863327,-460.0,0.00019726,2]
[376449941,1753981863336,-460.0,0.00019726,2]
[376449942,1753981863346,-460.0,0.00019726,2]
[376449943,1753981863355,-460.0,0.00019726,2]
[376449944,1753981863366,-460.0,0.00019726,2]
[376449945,1753981863375,-460.0,0.00019726,2]
[376449946,1753981863384,-461.89734099,0.00019726,2]
[376449947,1753981863394,-1161.65,0.00019726,2]
[376449948,1753981863403,-460.0,0.00019726,2]
[376449949,1753981863412,-460.0,0.00019726,2]
[376449950,1753981863422,-460.0,0.00019726,2]
[376449951,1753981863431,-1781.27,0.00019726,2]
[376449952,1753981863441,-460.0,0.00019726,2]
[376449953,1753981863450,-569.16901836,0.00019726,2]
[376449954,1753981863459,-460.0,0.00019726,2]
[376449955,1753981863468,-460.0,0.00019726,2]
[376449956,1753981863477,-460.0,0.00019726,2]
[376449957,1753981863487,-460.0,0.00019726,2]
[376449958,1753981863496,-460.0,0.00019726,2]
[376449959,1753981863505,-460.0,0.00019726,2]
[376449960,1753981863515,-1420.32,0.00019726,2]
[376449961,1753981863524,-460.0,0.00019726,2]
[376449962,1753981863536,-460.0,0.00019726,2]
[376449963,1753981863546,-460.0,0.00019726,2]
[376449964,1753981863556,-460.0,0.00019726,2]
[376449965,1753981863566,-460.0,0.00019726,2]
[376449966,1753981863576,-460.0,0.00019726,2]
[376449967,1753981863586,-460.0,0.00019726,2]
[376449968,1753981863596,-460.0,0.00019726,2]
[376449969,1753981863606,-460.0,0.00019726,2]
[376449970,1753981863616,-460.0,0.00019726,2]
[376449971,1753981863627,-463.55419024,0.00019726,2]
[376449972,1753981863636,-460.0,0.00019726,2]
[376449973,1753981863647,-460.0,0.00019726,2]
[376449974,1753981863657,-905.58,0.00019726,2]
[376449975,1753981863667,-460.0,0.00019726,2]
[376449976,1753981863677,-460.0,0.00019726,2]
[376449977,1753981863687,-460.0,0.00019726,2]
[376449978,1753981863697,-460.0,0.00019726,2]
[376449979,1753981863707,-460.0,0.00019726,2]
[376449980,1753981863716,-925.87,0.00019726,2]
[376449981,1753981863726,-4807.8,0.00019726,2]
[376449982,1753981863736,-460.0,0.00019726,2]
[376449983,1753981863747,-4927.01,0.00019726,2]
[376449984,1753981863757,-626.64,0.00019726,2]
[376449985,1753981863773,-1322.51,0.00019726,2]
[376449986,1753981863786,-1002.77,0.00019726,2]
[376449987,1753981863796,-460.0,0.00019726,2]
[376449988,1753981863809,-460.0,0.00019726,2]
[376449989,1753981863824,-2638.07,0.00019726,2]
[376449990,1753981863834,-449.282314,0.00019726,2]
[376449991,1753981863845,-449.282314,0.00019726,2]
[376449992,1753981863983,-460.0,0.00019726,2]
[376449993,1753981863993,-449.282314,0.00019726,2]
[376449994,1753981864002,-460.0,0.00019726,2]
[376449995,1753981864012,-4092.88,0.00019726,2]
[376449996,1753981864022,-449.282314,0.00019726,2]
[376449997,1753981864033,-460.0,0.00019726,2]
[376449998,1753981864042,-449.282314,0.00019726,2]
[376449999,1753981864052,-449.282314,0.00019726,2]
[376450000,1753981864061,-460.0,0.00019726,2]
[376450001,1753981864071,-650.95,0.00019726,2]
[376450002,1753981864080,-573.06,0.00019726,2]
[376450003,1753981864090,-748.87,0.00019726,2]
[376450004,1753981864099,-460.0,0.00019726,2]
[376450005,1753981864109,-460.0,0.00019726,2]
[376450006,1753981864119,-460.0,0.00019726,2]
[376450007,1753981864128,-346.239177,0.00019726,2]
[376450008,1753981864138,-346.239177,0.00019726,2]
[376450009,1753981864148,-8998.04,0.00019726,2]
[376450010,1753981864158,-394.0756065,0.00019726,2]
[376450011,1753981864168,-460.0,0.00019726,2]
[376450012,1753981864178,-346.239177,0.00019726,2]
[376450013,1753981864188,-346.239177,0.00019726,2]
[376450014,1753981864197,-460.0,0.00019726,2]
[376450015,1753981864206,-460.0,0.00019726,2]
[376450016,1753981864216,-460.0,0.00019726,2]
[376450017,1753981864225,-537.93,0.00019726,2]
[376450018,1753981864235,-854.24,0.00019726,2]
[376450019,1753981864244,-151.0,0.00019726,2]
[376450020,1753981864254,-151.0,0.00019726,2]
[376450021,1753981864263,-460.0,0.00019726,2]
[376450022,1753981864272,-470.56654914,0.00019726,2]
[376450023,1753981864284,-608.991047,0.00019726,2]
[376450024,1753981864294,-460.0,0.00019726,2]
[376450025,1753981864304,-608.991047,0.00019726,2]
[376450026,1753981864314,-3557.85,0.00019726,2]
[376450027,1753981864326,-608.991047,0.00019726,2]
[376450028,1753981864336,-460.0,0.00019726,2]
[376450029,1753981864346,-460.0,0.00019726,2]
[376450030,1753981864356,-647.36,0.00019726,2]
[376450031,1753981864365,-608.991047,0.00019726,2]
[376450032,1753981864376,-608.991047,0.00019726,2]
[376450033,1753981864386,-460.0,0.00019726,2]
[376450034,1753981864395,-608.991047,0.00019726,2]
[376450035,1753981864404,-460.0,0.00019726,2]
[376450036,1753981864414,-1095.36,0.00019726,2]
[376450037,1753981864424,-460.0,0.00019726,2]
[376450038,1753981864434,-730.58,0.00019726,2]
[376450039,1753981864443,-11305.8,0.00019726,2]
[376450040,1753981864453,-460.0,0.00019726,2]
[376450041,1753981864462,-460.0,0.00019726,2]
[376450042,1753981864472,-1010.67,0.00019726,2]
[376450043,1753981864481,-460.0,0.00019726,2]
[376450044,1753981864491,-460.0,0.00019726,2]
[376450045,1753981864500,-460.0,0.00019726,2]
[376450046,1753981864510,-460.0,0.00019726,2]
[376450047,1753981864519,-460.0,0.00019726,2]
[376450048,1753981864528,-3650.46,0.00019726,2]
[376450049,1753981864538,-742.81,0.00019726,2]
[376450050,1753981864547,-460.0,0.00019726,2]
[376450051,1753981864556,-460.0,0.00019726,2]
[376450052,1753981864566,-1037.87,0.00019726,2]
[376450053,1753981864575,-460.0,0.00019726,2]
[376450054,1753981864585,-461.55629779,0.00019726,2]
[376450055,1753981864594,-460.0,0.00019726,2]
[376450056,1753981864603,-460.0,0.00019726,2]
[376450057,1753981864613,-460.0,0.00019726,2]
[376450058,1753981864623,-1179.15,0.00019726,2]
[376450059,1753981864632,-1056.37,0.00019726,2]
[376450060,1753981864641,-816.7,0.00019726,2]
[376450061,1753981864650,-1709.2,0.00019726,2]
[376450062,1753981864660,-1336.07,0.00019726,2]
[376450063,1753981864669,-460.51278836,0.00019726,2]
[376450064,1753981864679,-674.7,0.00019726,2]
[376450065,1753981864688,-531.78,0.00019726,2]
[376450066,1753981864697,-681.11,0.00019726,2]
[376450067,1753981864707,-3537.55,0.00019726,2]
[376450068,1753981864716,-460.0,0.00019726,2]
[376450069,1753981864726,-460.0,0.00019726,2]
[376450070,1753981864735,-1008.27,0.00019726,2]
[376450071,1753981864744,-460.0,0.00019726,2]
[376450072,1753981864753,-4292.53,0.00019726,2]
[376450073,1753981864763,-1039.46,0.00019726,2]
[376450074,1753981864773,-460.0,0.00019726,2]
[376450075,1753981864784,-500.0,0.00019726,2]
[376450076,1753981864793,-4720.29,0.00019726,2]
[376450077,1753981864802,-460.0,0.00019726,2]
[376450078,1753981864812,-460.0,0.00019726,2]
[376450079,1753981864822,-460.0,0.00019726,2]
[376450080,1753981864831,-460.0,0.00019726,2]
[376450081,1753981864840,-4656.09,0.00019726,2]
[376450082,1753981864850,-460.0,0.00019726,2]
[376450083,1753981864860,-1458.92,0.00019726,2]
[376450084,1753981864869,-460.0,0.00019726,2]
[376450085,1753981864879,-3767.75,0.00019726,2]
[376450086,1753981864889,-460.0,0.00019726,2]
[376450087,1753981864899,-460.0,0.00019726,2]
[376450088,1753981864908,-460.0,0.00019726,2]
[376450089,1753981864917,-460.0,0.00019726,2]
[376450090,1753981864927,-4646.37,0.00019726,2]
[376450091,1753981864937,-1292.47,0.00019726,2]
[376450092,1753981864946,-460.0,0.00019726,2]
[376450093,1753981864955,-460.0,0.00019726,2]
[376450094,1753981864965,-460.0,0.00019726,2]
[376450095,1753981864975,-1102.7,0.00019726,2]
[376450096,1753981864984,-650.56,0.00019726,2]
[376450097,1753981864993,-460.0,0.00019726,2]
[376450098,1753981865002,-460.0,0.00019726,2]
[376450099,1753981865012,-460.0,0.00019726,2]
[376450100,1753981865021,-536.38,0.00019726,2]
[376450101,1753981865031,-460.0,0.00019726,2]
[376450102,1753981865040,-460.0,0.00019726,2]
[376450103,1753981865050,-460.0,0.00019726,2]
[376450104,1753981865060,-1119.47,0.00019726,2]
[376450105,1753981865069,-460.0,0.00019726,2]
[376450106,1753981865079,-460.0,0.00019726,2]
[376450107,1753981865089,-329.18530784,0.00019726,2]
[376450108,1753981865099,-1071.37,0.00019726,2]
[376450109,1753981865109,-2984.36,0.00019726,2]
[376450110,1753981865118,-460.0,0.00019726,2]
[376450111,1753981865128,-701.68,0.00019726,2]
[376450112,1753981865138,-460.0,0.00019726,2]
[376450113,1753981865148,-460.0,0.00019726,2]
[376450114,1753981865158,-815.05,0.00019726,2]
[376450115,1753981865169,-460.0,0.00019726,2]
[376450116,1753981865179,-2221.88,0.00019726,2]
[376450117,1753981865188,-230.34144251,0.00019726,2]
[376450118,1753981865197,-460.0,0.00019726,2]
[376450119,1753981865207,-460.0,0.00019726,2]
[376450120,1753981865216,-461.73,0.00019726,2]
[376450121,1753981865226,-792.7,0.00019726,2]
[376450122,1753981865235,-460.0,0.00019726,2]
[376450123,1753981865245,-985.71,0.00019726,2]
[376450124,1753981865254,-7836.6,0.00019726,2]
[376450125,1753981865263,-209.004364,0.00019726,2]
[376450126,1753981865272,-430.2927267,0.00019726,2]
[376450127,1753981865281,-430.2927267,0.00019726,2]
[376450128,1753981865291,-430.2927267,0.00019726,2]
[376450129,1753981865301,-430.2927267,0.00019726,2]
[376450130,1753981865310,-178.4967982,0.00019726,2]
[376450131,1753981865320,-178.4967982,0.00019726,2]
[376450132,1753981865332,-178.4967982,0.00019726,2]
[376450133,1753981865342,-178.4967982,0.00019726,2]
[376450134,1753981865353,-178.4967982,0.00019726,2]
[376450135,1753981865363,-178.4967982,0.00019726,2]
[376450136,1753981865373,-178.4967982,0.00019726,2]
[376450137,1753981865383,-178.4967982,0.00019726,2]
[376450138,1753981865392,-178.4967982,0.00019726,2]
[376450139,1753981865402,-178.4967982,0.00019726,2]
[376450140,1753981865412,-325.9714933,0.00019726,2]
[376450141,1753981865421,-355.4696276,0.00019726,2]
[376450142,1753981865430,-1859.17124862,0.00019739,2]
[376450143,1753981865440,-1642.0,0.00019758,2]
[376450144,1753981865449,-1018.49,0.000198,2]
[376450145,1753981865458,-1642.0,0.00019832,2]
[376450146,1753981865467,-168.0,0.00019865,2]
[376450147,1753981865476,-577.9763186,0.0001989,2]
[376450148,1753981865485,-160.1575864,0.0001989,2]
[376450149,1753981865495,-160.1575864,0.0001989,2]
[376450150,1753981865504,-160.1575864,0.0001989,2]
[376450151,1753981865514,-151.0,0.000199,2]
[376450152,1753981865523,-3400.73566583,0.000199,2]
[376450153,1753981865536,-9492.218153,0.000199,2]
[376450154,1753981865545,-310.20720429,0.0001993,2]
[376450155,1753981865555,-5228.0,0.00019946,2]
[376450156,1753981865564,-450.49754817,0.00019948,2]
[376450157,1753981865573,-4710.0,0.0001995,2]
[376450158,1753981865582,-4710.0,0.00019956,2]
[376450159,1753981865591,-200.0,0.00019973,2]
[376450160,1753981865602,-500.0,0.00019973,2]
[376450161,1753981865611,-2752.40581177,0.00019981,2]
[376450162,1753981865620,-274.86342,0.0001999,2]
[376450163,1753981865630,-274.86342,0.0001999,2]
[376450164,1753981865640,-151.0,0.0001999,2]
[376450165,1753981865649,-5228.0,0.00019994,2]
[376450166,1753981865658,-449.282314,0.00019994,2]
[376450167,1753981865667,-449.282322,0.00019994,2]